fUSD/lending_fUSD_20240907
["ID","MTS","AMOUNT","RATE_DAILY","PERIOD"]
[337518787,1725733371692,-150.0,0.00030502,120]
[337518788,1725733371725,-150.0,0.00030518,120]
[337518789,1725733371756,-2771.28400738,0.00030521,30]
[337518790,1725733371788,-150.0,0.00030521,120]
[337518791,1725733371820,-150.0,0.00030583,120]
[337518792,1725733371854,-150.0,0.00030583,120]
[337518793,1725733371889,-150.0,0.00030591,120]
[337518794,1725733371922,-215.0,0.0003061,30]
[337518795,1725733371957,-150.0,0.00030613,120]
[337518796,1725733371990,-548.0,0.00030613,30]
[337518797,1725733372022,-150.0,0.0003062,120]
[337518798,1725733372057,-1000.0,0.00030635,30]
[337518799,1725733372090,-150.0,0.00030649,120]
[337518800,1725733372122,-2771.28400738,0.00030658,30]
[337518801,1725733372154,-150.0,0.00030672,120]
[337518802,1725733372187,-201.0,0.0003073,30]
[337518803,1725733372218,-201.0,0.0003073,30]
[337518804,1725733372251,-150.0,0.00030752,120]
[337518805,1725733372286,-150.0,0.00030765,120]
[337518806,1725733372319,-2771.28400738,0.00030767,30]
[337518807,1725733372353,-150.0,0.00030782,120]
[337518808,1725733372385,-250.0,0.000308,30]
[337518809,1725733372417,-10221.58066606,0.00030831,30]
[337518810,1725733372449,-150.0,0.00030834,120]
[337518811,1725733372480,-2110.0,0.00030838,30]
[337518812,1725733372511,-1000.0,0.00030884,30]
[337518813,1725733372543,-31189.1567943,0.000309,30]
[337518814,1725733372575,-2771.28400738,0.00030904,30]
[337518815,1725733372607,-150.0,0.00030917,120]
[337518816,1725733372638,-150.0,0.00030944,120]
[337518817,1725733372670,-151.0,0.00030959,120]
[337518818,1725733372702,-150.0,0.00030967,120]
[337518819,1725733372735,-19125.21717595,0.00031,30]
[337518820,1725733372768,-272.49685348,0.00031,30]
[337518821,1725733372801,-1800.0,0.00031,32]
[337518822,1725733372833,-1800.0,0.00031,30]
[337518823,1725733372866,-250000.0,0.00031,30]
[337518824,1725733372898,-224.03,0.00031,30]
[337518825,1725733372929,-229.37133703,0.00031,30]
[337518826,1725733372960,-25883.32168961,0.00031,30]
[337518827,1725733372992,-150.0,0.00031001,120]
[337518828,1725733373025,-150.0,0.00031029,120]
[337518829,1725733373066,-150.0,0.00031032,120]
[337518830,1725733373098,-2771.28400738,0.00031041,30]
[337518831,1725733373131,-150.0,0.00031112,120]
[337518832,1725733373163,-1000.0,0.00031133,30]
[337518833,1725733373196,-2771.28400738,0.00031151,30]
[337518834,1725733373230,-150.0,0.00031182,120]
[337518835,1725733373264,-505.0,0.000312,30]
[337518836,1725733373301,-500.0,0.000312,30]
[337518837,1725733373337,-150.423487,0.000312,120]
[337518838,1725733373371,-150.0,0.00031229,120]
[337518839,1725733373405,-296.2785,0.0003124,60]
[337518840,1725733373450,-2771.28400738,0.00031288,30]
[337518841,1725733373482,-15000.0,0.00031297,30]
[337518842,1725733373515,-30000.0,0.00031297,30]
[337518843,1725733373550,-524.0,0.000313,120]
[337518844,1725733373585,-1186.14,0.000313,31]
[337518845,1725733373621,-1186.14,0.000313,31]
[337518846,1725733373793,-1186.14,0.000313,31]
[337518847,1725733373831,-1186.14,0.000313,31]
[337518848,1725733373868,-1186.14,0.000313,31]
[337518849,1725733373904,-1186.14,0.000313,31]
[337518850,1725733373940,-1186.14,0.000313,31]
[337518851,1725733373977,-1186.14,0.000313,31]
[337518852,1725733374013,-1186.14,0.000313,31]
[337518853,1725733374052,-1186.14,0.000313,31]
[337518854,1725733374088,-1186.14,0.000313,31]
[337518855,1725733374123,-1186.14,0.000313,31]
[337518856,1725733374159,-1186.14,0.000313,31]
[337518857,1725733374194,-1186.14,0.000313,31]
[337518858,1725733374229,-1186.14,0.000313,31]
[337518859,1725733374266,-1186.14,0.000313,31]
[337518860,1725733374302,-3635.8493327,0.0003131,30]
[337518861,1725733374340,-1000.0,0.00031337,30]
[337518862,1725733374375,-2110.0,0.00031338,30]
[337518863,1725733374409,-1000.0,0.00031382,30]
[337518864,1725733374444,-2771.28400738,0.00031397,30]
[337518865,1725733374479,-347.56,0.0003141,30]
[337518866,1725733374515,-3015.0,0.00031412,30]
[337518867,1725733374550,-314.50435261,0.00031412,120]
[337518868,1725733374585,-1049.16,0.00031417,30]
[337518869,1725733374619,-200.0,0.0003143,30]
[337518870,1725733374653,-150.0,0.00031434,120]
[337518871,1725733374688,-156.764944,0.00031437,30]
[337518872,1725733374721,-156.764944,0.00031439,35]
[337518873,1725733374755,-156.764944,0.00031439,32]
[337518874,1725733374788,-200.06147095,0.00031442,33]
[337518875,1725733374820,-834.05891931,0.0003146,30]
[337518876,1725733374854,-150.0,0.00031461,120]
[337518877,1725733374889,-150.0,0.00031471,120]
[337518878,1725733374923,-150.0,0.00031473,120]
[337518879,1725733374956,-215.0,0.000315,30]
[337518880,1725733374990,-201.0,0.000315,30]
[337518881,1725733375024,-201.0,0.000315,30]
[337518882,1725733375058,-2771.28400738,0.00031534,30]
[337518883,1725733375091,-150.0,0.00031563,120]
[337518884,1725733375123,-150.0,0.00031569,120]
[337518885,1725733375157,-150.0,0.00031582,120]
[337518886,1725733375190,-150.0,0.00031591,120]
[337518887,1725733375223,-1000.0,0.00031631,30]
[337518888,1725733375255,-173.77,0.00031644,91]
[337518889,1725733375287,-2771.28400738,0.00031671,30]
[337518890,1725733375322,-150.0,0.00031692,120]
[337518891,1725733375355,-150.0,0.00031698,120]
[337518892,1725733375388,-150.0,0.000317,120]
[337518893,1725733375421,-16000.0,0.0003171,30]
[337518894,1725733375475,-150.0,0.00031768,120]
[337518895,1725733375509,-2771.28400738,0.00031781,30]
[337518896,1725733375544,-150.0,0.00031807,120]
[337518897,1725733375580,-150.0,0.00031817,120]
[337518898,1725733375616,-150.0,0.00031835,120]
[337518899,1725733375651,-370.01,0.00031838,30]
[337518900,1725733375685,-150.0,0.00031851,120]
[337518901,1725733375719,-150.0,0.00031861,120]
[337518902,1725733375752,-1000.0,0.0003188,30]
[337518903,1725733375793,-150.0,0.00031885,120]
[337518904,1725733375830,-1186.14,0.000319,31]
[337518905,1725733375866,-1186.14,0.000319,31]
[337518906,1725733375900,-1186.14,0.000319,31]
[337518907,1725733375935,-1186.14,0.000319,31]
[337518908,1725733375968,-1186.14,0.000319,31]
[337518909,1725733376002,-1186.14,0.000319,31]
[337518910,1725733376036,-1186.14,0.000319,31]
[337518911,1725733376069,-1186.14,0.000319,31]
[337518912,1725733376104,-1186.14,0.000319,31]
[337518913,1725733376138,-1186.14,0.000319,31]
[337518914,1725733376172,-1186.14,0.000319,31]
[337518915,1725733376206,-1186.14,0.000319,31]
[337518916,1725733376239,-1186.14,0.000319,31]
[337518917,1725733376275,-1186.14,0.000319,31]
[337518918,1725733376312,-1186.14,0.000319,31]
[337518919,1725733376349,-1186.14,0.000319,31]
[337518920,1725733376384,-1186.14,0.000319,31]
[337518921,1725733376420,-1186.14,0.000319,31]
[337518922,1725733376456,-1186.14,0.000319,31]
[337518923,1725733376494,-1186.14,0.000319,31]
[337518924,1725733376530,-1186.14,0.000319,31]
[337518925,1725733376569,-1186.14,0.000319,31]
[337518926,1725733376606,-1186.14,0.000319,31]
[337518927,1725733376643,-1186.14,0.000319,31]
[337518928,1725733376676,-150.0,0.00031906,120]
[337518929,1725733376709,-151.0,0.00031918,120]
[337518930,1725733376743,-2771.28400738,0.00031918,30]
[337518931,1725733376775,-150.0,0.00031919,120]
[337518932,1725733376812,-500.0,0.00032,120]
[337518933,1725733376846,-1800.0,0.00032,33]
[337518934,1725733376879,-3600.0,0.00032,33]
[337518935,1725733376914,-150.0,0.00032,120]
[337518936,1725733376948,-150.0,0.00032034,120]
[337518937,1725733376982,-150.0,0.00032046,120]
[337518938,1725733377015,-1000.0,0.0003213,30]
[337518939,1725733377051,-150.0,0.00032135,120]
[337518940,1725733377086,-150.0,0.00032137,120]
[337518941,1725733377120,-150.0,0.00032163,120]
[337518942,1725733377156,-150.0,0.00032341,120]
[337518943,1725733377190,-150.0,0.00032341,120]
[337518944,1725733377224,-150.0,0.00032351,120]
[337518945,1725733377256,-1000.0,0.00032379,30]
[337518946,1725733377292,-1186.14,0.000324,31]
[337518947,1725733377329,-1186.14,0.000324,31]
[337518948,1725733377365,-1186.14,0.000324,31]
[337518949,1725733377544,-1186.14,0.000324,31]
[337518950,1725733377583,-1186.14,0.000324,31]
[337518951,1725733377619,-1186.14,0.000324,31]
[337518952,1725733377656,-1186.14,0.000324,31]
[337518953,1725733377692,-1186.14,0.000324,31]
[337518954,1725733377728,-1186.14,0.000324,31]
[337518955,1725733377764,-1186.14,0.000324,31]
[337518956,1725733377800,-1186.14,0.000324,31]
[337518957,1725733377836,-1186.14,0.000324,31]
[337518958,1725733377872,-1186.14,0.000324,31]
[337518959,1725733377909,-1186.14,0.000324,31]
[337518960,1725733377947,-1186.14,0.000324,31]
[337518961,1725733377986,-1186.14,0.000324,31]
[337518962,1725733378025,-1186.14,0.000324,31]
[337518963,1725733378061,-1186.14,0.000324,31]
[337518964,1725733378097,-1186.14,0.000324,31]
[337518965,1725733378135,-1186.14,0.000324,31]
[337518966,1725733378170,-1186.14,0.000324,31]
[337518967,1725733378206,-1186.14,0.000324,31]
[337518968,1725733378244,-1186.14,0.000324,31]
[337518969,1725733378281,-1186.14,0.000324,31]
[337518970,1725733378319,-150.0,0.00032421,120]
[337518971,1725733378354,-150.0,0.00032516,120]
[337518972,1725733378388,-150.0,0.00032529,120]
[337518973,1725733378423,-150.0,0.0003254,120]
[337518974,1725733378457,-150.0,0.00032607,120]
[337518975,1725733378492,-150.0,0.00032621,120]
[337518976,1725733378527,-1000.0,0.00032628,30]
[337518977,1725733378566,-150.0,0.00032702,120]
[337518978,1725733378602,-150.0,0.00032724,120]
[337518979,1725733378640,-150.0,0.00032747,120]
[337518980,1725733378676,-150.0,0.0003277,120]
[337518981,1725733378712,-159.53873907,0.00032876,120]
[337518982,1725733378750,-200.0,0.00032877,60]
[337518983,1725733378787,-151.0,0.00032877,120]
[337518984,1725733378823,-1076.08,0.00032877,30]
[337518985,1725733378861,-1000.0,0.00032877,30]
[337518986,1725733378896,-150.0,0.0003299,120]
[337518987,1725733378933,-321.93536632,0.00033,120]
[337518988,1725733378969,-161.08524666,0.00033,120]
[337518989,1725733379004,-1800.0,0.00033,34]
[337518990,1725733379039,-443.6471157,0.00033,90]
[337518991,1725733379074,-999.999999,0.00033,60]
[337518992,1725733379107,-1186.14,0.00033,31]
[337518993,1725733379143,-1186.14,0.00033,31]
[337518994,1725733379178,-1186.14,0.00033,31]
[337518995,1725733379213,-1186.14,0.00033,31]
[337518996,1725733379248,-1186.14,0.00033,31]
[337518997,1725733379282,-1186.14,0.00033,31]
[337518998,1725733379319,-1186.14,0.00033,31]
[337518999,1725733379356,-1186.14,0.00033,31]
[337519000,1725733379391,-1186.14,0.00033,31]
[337519001,1725733379428,-1186.14,0.00033,31]
[337519002,1725733379465,-1186.14,0.00033,31]
[337519003,1725733379502,-1186.14,0.00033,31]
[337519004,1725733379541,-1186.14,0.00033,31]
[337519005,1725733379584,-1186.14,0.00033,31]
[337519006,1725733379622,-1186.14,0.00033,31]
[337519007,1725733379659,-1186.14,0.00033,31]
[337519008,1725733379695,-1186.14,0.00033,31]
[337519009,1725733379730,-1186.14,0.00033,31]
[337519010,1725733379765,-1186.14,0.00033,31]
[337519011,1725733379802,-1186.14,0.00033,31]
[337519012,1725733379838,-1186.14,0.00033,31]
[337519013,1725733379872,-1186.14,0.00033,31]
[337519014,1725733379908,-1186.14,0.00033,31]
[337519015,1725733379942,-1186.14,0.00033,31]
[337519016,1725733379976,-150.0,0.00033016,120]
[337519017,1725733380008,-150.0,0.00033042,120]
[337519018,1725733380042,-150.0,0.00033052,120]
[337519019,1725733380085,-150.0,0.00033112,120]
[337519020,1725733380125,-150.0,0.00033125,120]
[337519021,1725733380160,-1000.0,0.00033126,30]
[337519022,1725733380196,-150.0,0.00033148,120]
[337519023,1725733380231,-2971.9,0.00033151,120]
[337519024,1725733380268,-150.0,0.0003327,120]
[337519025,1725733380303,-251.61144245,0.00033333,30]
[337519026,1725733380340,-1000.0,0.00033375,30]
[337519027,1725733380378,-1186.14,0.000335,31]
[337519028,1725733380416,-1186.14,0.000335,31]
[337519029,1725733380453,-1186.14,0.000335,31]
[337519030,1725733380490,-1186.14,0.000335,31]
[337519031,1725733380527,-1186.14,0.000335,31]
[337519032,1725733380568,-1186.14,0.000335,31]
[337519033,1725733380606,-1186.14,0.000335,31]
[337519034,1725733380643,-1186.14,0.000335,31]
[337519035,1725733380679,-1186.14,0.000335,31]
[337519036,1725733380715,-1186.14,0.000335,31]
[337519037,1725733380750,-1186.14,0.000335,31]
[337519038,1725733380786,-1186.14,0.000335,31]
[337519039,1725733380818,-1000.0,0.00033624,30]
[337519040,1725733380850,-768.0,0.00033674,30]
[337519041,1725733380886,-151.0,0.00033836,120]
[337519042,1725733380919,-1000.0,0.00033873,30]
[337519043,1725733380954,-2044.4415908,0.00034,30]
[337519044,1725733380989,-500.0,0.00034,120]
[337519045,1725733381023,-1200.0,0.00034,120]
[337519046,1725733381055,-1800.0,0.00034,35]
[337519047,1725733381089,-1000.0,0.00034122,30]
[337519048,1725733381122,-1500.0,0.00034246,30]
[337519049,1725733381156,-1500.0,0.00034246,30]
[337519050,1725733381190,-1500.0,0.00034246,30]
[337519051,1725733381225,-1500.0,0.00034246,30]
[337519052,1725733381258,-1500.0,0.00034246,30]
[337519053,1725733381447,-1500.0,0.00034246,30]
[337519054,1725733381479,-1188.66323715,0.00034246,30]
[337519055,1725733381511,-1000.0,0.00034371,30]
[337519056,1725733381544,-1000.0,0.0003462,30]
[337519057,1725733381577,-151.0,0.00034795,120]
[337519058,1725733381608,-962.864255,0.000348,30]
[337519059,1725733381643,-1000.0,0.00034869,30]
[337519060,1725733381674,-160.0,0.00035,30]
[337519061,1725733381706,-1630.60396338,0.00035,60]
[337519062,1725733381738,-1000.0,0.00035,60]
[337519063,1725733381771,-1000.0,0.00035,120]
[337519064,1725733381802,-411.53747398,0.00035,30]
[337519065,1725733381834,-200.0,0.00035,120]
[337519066,1725733381868,-413.0,0.00035,120]
[337519067,1725733381903,-1283.819007,0.00035,30]
[337519068,1725733381939,-1000.14571757,0.00035,30]
[337519069,1725733381974,-1000.0,0.00035118,30]
[337519070,1725733382009,-1000.0,0.00035367,30]
[337519071,1725733382044,-1604.773759,0.000355,30]
[337519072,1725733382079,-1925.728511,0.000356,30]
[337519073,1725733382116,-200.0,0.00035616,60]
[337519074,1725733382150,-1000.0,0.00035616,30]
[337519075,1725733382183,-1925.728511,0.000357,30]
[337519076,1725733382219,-151.0,0.00035753,120]
[337519077,1725733382253,-2246.683263,0.000358,30]
[337519078,1725733382289,-1925.728511,0.0003582,30]
[337519079,1725733382324,-1000.0,0.00035866,30]
[337519080,1725733382359,-151.0,0.00036,120]
[337519081,1725733382392,-500.0,0.00036,120]
[337519082,1725733382426,-155.54190469,0.00036,120]
[337519083,1725733382459,-1000.0,0.00036115,30]
[337519084,1725733382494,-1000.0,0.00036364,30]
[337519085,1725733382527,-150.0,0.00036498,120]
[337519086,1725733382567,-1000.0,0.00036613,30]
[337519087,1725733382601,-151.0,0.00036712,120]
[337519088,1725733382636,-150.0,0.00036798,120]
[337519089,1725733382675,-1000.0,0.00036862,30]
[337519090,1725733382713,-410.91005103,0.00036986,60]
[337519091,1725733382746,-1075.0,0.00037042,30]
[337519092,1725733382781,-1000.0,0.00037111,30]
[337519093,1725733382814,-150.0,0.00037198,120]
[337519094,1725733382849,-1000.0,0.0003736,30]
[337519095,1725733382882,-150.0,0.00037498,120]
[337519096,1725733382916,-1000.0,0.00037609,30]
[337519097,1725733382950,-151.0,0.00037671,120]
[337519098,1725733382985,-150.0,0.00037798,120]
[337519099,1725733383021,-1000.0,0.00037858,30]
[337519100,1725733383056,-347.75635363,0.00037999,120]
[337519101,1725733383091,-257.68301706,0.00038,30]
[337519102,1725733383127,-259.12256421,0.00038,30]
[337519103,1725733383165,-500.0,0.00038,120]
[337519104,1725733383200,-1100.0,0.00038,120]
[337519105,1725733383234,-2033.0,0.00038,120]
[337519106,1725733383269,-1341.624,0.00038,120]
[337519107,1725733383308,-527.78746134,0.00038,120]
[337519108,1725733383345,-299.88508626,0.00038,120]
[337519109,1725733383380,-1000.0,0.00038107,30]
[337519110,1725733383417,-150.0,0.00038198,120]
[337519111,1725733383455,-252.47394038,0.00038356,60]
[337519112,1725733383490,-1000.0,0.00038356,120]
[337519113,1725733383526,-150.0,0.00038498,120]
[337519114,1725733383565,-612.34352401,0.000385,120]
[337519115,1725733383601,-1307.335,0.00038559,52]
[337519116,1725733383640,-420.162,0.00038559,52]
[337519117,1725733383679,-1000.0,0.00038605,120]
[337519118,1725733383718,-151.0,0.0003863,120]
[337519119,1725733383754,-306.28,0.0003872,31]
[337519120,1725733383789,-1013.16,0.0003876,32]
[337519121,1725733383826,-150.0,0.00038798,120]
[337519122,1725733383863,-1000.0,0.00038854,120]
[337519123,1725733383899,-7962.69960783,0.000389,30]
[337519124,1725733383936,-1526.24783617,0.00039,30]
[337519125,1725733383971,-1178.6311599,0.00039,120]
[337519126,1725733384007,-199.64644134,0.00039,120]
[337519127,1725733384043,-150.0,0.00039,30]
[337519128,1725733384079,-600.0,0.00039,120]
[337519129,1725733384115,-600.0,0.00039,120]
[337519130,1725733384151,-600.0,0.00039,120]
[337519131,1725733384187,-4135.71693984,0.00039,30]
[337519132,1725733384221,-1524.0,0.00039,120]
[337519133,1725733384257,-1000.0,0.00039103,120]
[337519134,1725733384293,-150.0,0.00039198,120]
[337519135,1725733384330,-289.70588804,0.000392,30]
[337519136,1725733384365,-1208.22012,0.00039208,30]
[337519137,1725733384399,-1000.0,0.00039352,120]
[337519138,1725733384433,-569.74315471,0.000394,30]
[337519139,1725733384468,-1208.22012,0.00039408,30]
[337519140,1725733384500,-202.8488889,0.0003944,120]
[337519141,1725733384538,-150.0,0.00039498,120]
[337519142,1725733384576,-151.0,0.00039589,120]
[337519143,1725733384613,-1000.0,0.00039601,120]
[337519144,1725733384648,-1208.22012,0.00039608,30]
[337519145,1725733384681,-306.28,0.00039635,38]
[337519146,1725733384718,-150.0,0.00039798,120]
[337519147,1725733384753,-1208.22012,0.00039808,30]
[337519148,1725733384792,-1000.0,0.00039851,120]
[337519149,1725733384827,-1013.16,0.0003987,40]
[337519150,1725733384862,-34173.68585083,0.00039876,31]
[337519151,1725733384897,-4047088.05822712,0.0003988,30]
[337519152,1725733447918,-295.20240854,0.0002739,30]
[337519153,1725733448012,-271.403,0.00037345,30]
[337519154,1725733448049,-150.0,0.00038835,120]
[337519155,1725733448085,-304.64,0.0003932,36]
[337519156,1725733448125,-255952.16578059,0.0003988,30]
[337519157,1725733448158,-50000.0,0.00039887,30]
[337519158,1725733448194,-3500.0,0.000399,30]
[337519159,1725733448229,-411.0,0.00039986,89]
[337519160,1725733448266,-250.0,0.00039999,30]
[337519161,1725733448304,-50000.0,0.0004,30]
[337519162,1725733448341,-50000.0,0.0004,40]
[337519163,1725733448520,-451.8071418,0.0004,120]
[337519164,1725733448554,-1500.0,0.0004,120]
[337519165,1725733448591,-477.12749073,0.0004,30]
[337519166,1725733448625,-968.63943309,0.0004,120]
[337519167,1725733448661,-1484.57288026,0.0004,30]
[337519168,1725733448694,-314.1214011,0.0004,30]
[337519169,1725733448728,-182.42983684,0.0004,30]
[337519170,1725733448760,-715.65949185,0.0004,120]
[337519171,1725733448793,-170.2022837,0.0004,30]
[337519172,1725733448826,-1050.46883032,0.0004,120]
[337519173,1725733448861,-524.65917962,0.0004,120]
[337519174,1725733448896,-351.54340207,0.0004,30]
[337519175,1725733448930,-1167.83189793,0.0004,120]
[337519176,1725733448966,-1088.32454442,0.0004,120]
[337519177,1725733449003,-1050.66050405,0.0004,32]
[337519178,1725733449041,-354.45693886,0.0004,120]
[337519179,1725733449079,-844.80912864,0.0004,120]
[337519180,1725733449113,-1464.25689548,0.0004,120]
[337519181,1725733449145,-342.0,0.0004,120]
[337519182,1725733449180,-2000.0,0.0004,80]
[337519183,1725733449213,-2000.0,0.0004,80]
[337519184,1725733449246,-2000.0,0.0004,80]
[337519185,1725733449277,-2000.0,0.0004,80]
[337519186,1725733449310,-2000.0,0.0004,80]
[337519187,1725733449342,-170.72917224,0.0004,120]
[337519188,1725733449376,-23410.66089126,0.0004,120]
[337519189,1725733449408,-163.61584387,0.0004,120]
[337519190,1725733449440,-500.0,0.0004,120]
[337519191,1725733449473,-4000.0,0.0004,30]
[337519192,1725733449507,-4000.0,0.0004,30]
[337519193,1725733449539,-4500.0,0.0004,30]
[337519194,1725733449574,-380.0,0.0004,120]
[337519195,1725733449609,-10000.0,0.0004,120]
[337519196,1725733449644,-10000.0,0.0004,120]
[337519197,1725733449680,-10000.0,0.0004,120]
[337519198,1725733449713,-10000.0,0.0004,120]
[337519199,1725733449746,-10000.0,0.0004,120]
[337519200,1725733449779,-10000.0,0.0004,120]
[337519201,1725733449812,-10000.0,0.0004,120]
[337519202,1725733449846,-10000.0,0.0004,120]
[337519203,1725733449878,-10000.0,0.0004,120]
[337519204,1725733449911,-10000.0,0.0004,120]
[337519205,1725733449944,-10000.0,0.0004,120]
[337519206,1725733449977,-10000.0,0.0004,120]
[337519207,1725733450009,-10000.0,0.0004,120]
[337519208,1725733450042,-10000.0,0.0004,120]
[337519209,1725733450076,-10000.0,0.0004,120]
[337519210,1725733450107,-10000.0,0.0004,120]
[337519211,1725733450141,-10000.0,0.0004,120]
[337519212,1725733450174,-10000.0,0.0004,120]
[337519213,1725733450207,-10000.0,0.0004,120]
[337519214,1725733450239,-10000.0,0.0004,120]
[337519215,1725733450271,-10000.0,0.0004,120]
[337519216,1725733450303,-10000.0,0.0004,120]
[337519217,1725733450335,-10000.0,0.0004,120]
[337519218,1725733450371,-10000.0,0.0004,120]
[337519219,1725733450403,-10000.0,0.0004,120]
[337519220,1725733450436,-10000.0,0.0004,120]
[337519221,1725733450468,-10000.0,0.0004,120]
[337519222,1725733450503,-10000.0,0.0004,120]
[337519223,1725733450534,-10000.0,0.0004,120]
[337519224,1725733450568,-10000.0,0.0004,120]
[337519225,1725733450603,-10000.0,0.0004,120]
[337519226,1725733450635,-10000.0,0.0004,120]
[337519227,1725733450668,-10000.0,0.0004,120]
[337519228,1725733450701,-10000.0,0.0004,120]
[337519229,1725733450734,-10000.0,0.0004,120]
[337519230,1725733450768,-10000.0,0.0004,120]
[337519231,1725733450801,-10000.0,0.0004,120]
[337519232,1725733450833,-10000.0,0.0004,120]
[337519233,1725733450867,-10000.0,0.0004,120]
[337519234,1725733450899,-10000.0,0.0004,120]
[337519235,1725733450932,-161.296149,0.0004,120]
[337519236,1725733450964,-493.41928349,0.0004,120]
[337519237,1725733450997,-200.0,0.0004,120]
[337519238,1725733451028,-1000.02620989,0.0004,60]
[337519239,1725733451060,-1487.43874493,0.0004,120]
[337519240,1725733451092,-16105.30031197,0.0004,60]
[337519241,1725733451131,-29719.3561659,0.0004,30]
[337519242,1725733451165,-34026.92361139,0.0004,30]
[337519243,1725733451199,-1000000.0,0.0004,120]
[337519244,1725733451234,-226.5698955,0.0004,120]
[337519245,1725733451268,-439.81872621,0.0004,30]
[337519246,1725733451303,-527.78746134,0.0004,120]
[337519247,1725733451335,-299.88508626,0.0004,120]
[337519248,1725733451369,-154.951179,0.0004,120]
[337519249,1725733451405,-1000.0,0.000401,120]
[337519250,1725733451438,-150.0,0.00040198,120]
[337519251,1725733451474,-1208.22012,0.00040208,30]
[337519252,1725733451507,-153.13521829,0.000403,120]
[337519253,1725733451539,-153.13521828,0.000403,120]
[337519254,1725733451573,-304.64,0.0004031,44]
[337519255,1725733451607,-1000.0,0.00040349,120]
[337519256,1725733451640,-1208.22012,0.00040408,30]
[337519257,1725733451674,-150.0,0.00040498,120]
[337519258,1725733451708,-151.0,0.00040548,120]
[337519259,1725733451879,-1000.0,0.00040598,120]
[337519260,1725733451915,-1208.22012,0.00040608,30]
[337519261,1725733451949,-580.0,0.00040746,60]
[337519262,1725733451984,-150.0,0.00040798,120]
[337519263,1725733452018,-1208.22012,0.00040808,30]
[337519264,1725733452053,-1000.0,0.00040847,120]
[337519265,1725733452087,-1455.86884494,0.000409,120]
[337519266,1725733452123,-1013.16,0.0004098,49]
[337519267,1725733452158,-50000.0,0.00041,31]
[337519268,1725733452194,-50000.0,0.00041,41]
[337519269,1725733452227,-913.9334657,0.00041,120]
[337519270,1725733452261,-1000.4,0.00041,120]
[337519271,1725733452294,-500.0,0.00041,120]
[337519272,1725733452328,-500.0,0.00041,120]
[337519273,1725733452361,-1639.99,0.00041,120]
[337519274,1725733452396,-1000000.0,0.00041,120]
[337519275,1725733452429,-3476.36249613,0.00041,120]
[337519276,1725733452462,-1943.0,0.00041,120]
[337519277,1725733452495,-733.63101894,0.00041078,120]
[337519278,1725733452530,-1696.68346137,0.00041085,120]
[337519279,1725733452564,-1747.78172617,0.00041095,30]
[337519280,1725733452597,-515.41939002,0.00041095,30]
[337519281,1725733452630,-1000.0,0.00041095,120]
[337519282,1725733452664,-1000.0,0.00041095,120]
[337519283,1725733452697,-253.55335895,0.00041095,120]
[337519284,1725733452731,-1000.0,0.00041095,120]
[337519285,1725733452765,-1000.0,0.00041095,120]
[337519286,1725733452800,-1000.0,0.00041095,120]